Cogmind - Beta 10.2 *** ADVENTURER MODE // 2021.05.06 @ 21:45:47 Player: Catalyst Result: Destroyed by G-67 Veteran with Plasma Rifle Performance ------------- Evolutions (7) 3500 Regions Visited (14) 2800 Robots Destroyed (1) 5 Value Destroyed (70) 70 Prototype IDs (0) 0 Alien Tech Used (0) 0 Bonus (2487) 2487 TOTAL SCORE: 8862 Bonus ------- Pacifist 1987 Scanned by Researcher 500 Cogmind --------- Core Integrity 0/1300 Matter 295/300 Energy 98/100 System Corruption 11% Temperature Cool (12) Movement Core (50) Location -3/Testing Parts ------- > --- POWER (2) -------- (None) > --- PROPULSION (13) -- (None) > --- UTILITY (4) ------ (None) > --- WEAPON (2) ------- (None) > --- INVENTORY (4) ---- Micro Fission Core Flexi-carbon Leg Great Axe Heavy Pick Peak State ------------ > --- POWER ------------ Micro Fission Core > --- PROPULSION ------- Field Propulsion Drive > --- UTILITY ---------- Improved Target Analyzer > --- WEAPON ----------- (None) > --- INVENTORY -------- Great Axe Heavy Pick [Rating: 17] Favorites ----------- Power Ion Engine Engine Ion Engine Power Core Micro Fission Core Propulsion Aluminum Leg Leg Aluminum Leg Hover Unit Gravmag System Flight Unit Field Propulsion Drive Utility Improved Target Analyzer Device Drone Bay Storage Small Storage Unit Processor Improved Target Analyzer Weapon Light Assault Rifle Energy Gun EM Pulse Gun Ballistic Gun Light Assault Rifle Slashing Weapon Great Axe Piercing Weapon Heavy Pick Build | -11 -10 -9 -8 -7 -6 -6 -6 -5 -5 -4 -4 -4 -3 -3 ------- Run | Scr Mat Mat Mat Fac Fac Low Low Fac Ext Fac Upp Upp Res Tes Slots Evolved 14 | . . 2 2 2 2 . . 2 . 2 . . 2 . Power 1 | . . . . 1 . . . . . . . . . . Propulsion 11 | . . 2 1 1 2 . . 2 . 1 . . 2 . Utility 2 | . . . 1 . . . . . . 1 . . . . Weapon . | . . . . . . . . . . . . . . . Parts Attached 16 | . . . 4 2 1 . . 6 1 1 . . . 1 Power 1 | . . . . . . . . . . 1 . . . . Engine . | . . . . . . . . . . . . . . . Core 1 | . . . . . . . . . . 1 . . . . Reactor . | . . . . . . . . . . . . . . . Propulsion 6 | . . . 4 . . . . 1 1 . . . . . Treads . | . . . . . . . . . . . . . . . Leg . | . . . . . . . . . . . . . . . Wheel . | . . . . . . . . . . . . . . . Hover 4 | . . . 4 . . . . . . . . . . . Flight 2 | . . . . . . . . 1 1 . . . . . Utility 3 | . . . . . 1 . . 1 . . . . . 1 Device 1 | . . . . . 1 . . . . . . . . . Storage . | . . . . . . . . . . . . . . . Processor 2 | . . . . . . . . 1 . . . . . 1 Hackware . | . . . . . . . . . . . . . . . Protection . | . . . . . . . . . . . . . . . Artifact . | . . . . . . . . . . . . . . . Weapon 6 | . . . . 2 . . . 4 . . . . . . Energy Gun . | . . . . . . . . . . . . . . . Energy Cannon . | . . . . . . . . . . . . . . . Ballistic Gun . | . . . . . . . . . . . . . . . Ballistic Cannon . | . . . . . . . . . . . . . . . Launcher . | . . . . . . . . . . . . . . . Special Weapon . | . . . . . . . . . . . . . . . Impact Weapon . | . . . . . . . . . . . . . . . Slashing Weapon 5 | . . . . 2 . . . 3 . . . . . . Piercing Weapon 1 | . . . . . . . . 1 . . . . . . Special Melee Weapon . | . . . . . . . . . . . . . . . Unidentified Prototypes . | . . . . . . . . . . . . . . . Parts Lost 11 | . . 4 4 . . . . . . 1 . . . 2 Power 1 | . . 1 . . . . . . . . . . . . Propulsion 6 | . . 1 4 . . . . . . 1 . . . . Utility 2 | . . . . . . . . . . . . . . 2 Weapon 2 | . . 2 . . . . . . . . . . . . Highest Loss Streak 3 | . . 3 3 . . . . . . 1 . . . 2 Average Slot Usage (%) 11 | . 85 47 13 . . . . 1 7 15 5 5 4 4 Engine 1 | . 14 7 . . . . . . . . . . . . Leg 3 | . 28 19 3 . . . . . . . . . . . Storage 2 | . 14 11 5 . . . . . . . . . . . Processor 1 | . . . . . . . . . 5 5 5 5 4 4 Ballistic Gun 1 | . 14 7 . . . . . . . . . . . . Naked Turns 522 | . . . 21 123 42 117 5 176 . . . . . 38 Heaviest Build 12 | 12 12 12 4 4 . . . 7 . 5 5 . . . Greatest Support 44 | 20 20 20 44 3 3 3 3 9 9 9 3 3 3 3 Greatest Overweight (x) 2 | . . . 1 1 . . . 2 . . 1 . . . Average Overweight (x) . | . . . . . . . . . . . . . . . Largest Inventory Capacity 6 | . 6 6 6 4 4 4 4 4 4 4 4 4 4 4 Average Capacity 4 | . 6 6 5 4 4 4 4 4 4 4 4 4 4 4 Most Carried 6 | . 6 6 6 4 3 2 2 4 4 2 4 4 4 4 Average Carried 3 | . 6 6 5 2 2 2 2 3 3 2 3 4 4 4 Final Capacity 6 | 6 6 6 4 4 4 4 4 4 4 4 4 4 4 4 Final Carried 6 | 6 6 6 4 1 2 2 2 4 3 2 4 4 4 4 Class Distribution -------------------- 100% | Mutant Dominant Class ---------------- Mutant | -10/Materials Mutant | -9/Materials Mutant | -8/Materials Mutant | -7/Factory Mutant | -6/Factory Mutant | -6/Lower Caves Mutant | -6/Lower Caves Mutant | -5/Factory Mutant | -5/Extension Mutant | -4/Factory Mutant | -4/Upper Caves Mutant | -4/Upper Caves Mutant | -3/Research Mutant | -3/Testing Resources | -11 -10 -9 -8 -7 -6 -6 -6 -5 -5 -4 -4 -4 -3 -3 ----------- Run | Scr Mat Mat Mat Fac Fac Low Low Fac Ext Fac Upp Upp Res Tes Matter Collected 315 | 200 . . . . . . . 72 . . 43 . . . Remotely . | . . . . . . . . . . . . . . . Salvage Created 52 | . . . . . . . . 52 . . . . . . Parts 5 | . . . . . . . . 5 . . . . . . Haulers Intercepted . | . . . . . . . . . . . . . . . Recyclers Shooed . | . . . . . . . . . . . . . . . Parts Field Recycled . | . . . . . . . . . . . . . . . Retrieved Matter . | . . . . . . . . . . . . . . . Parts Self-Destructed . | . . . . . . . . . . . . . . . Prevented 2 | . . . . . . . . . . . 2 . . . Kills | -11 -10 -9 -8 -7 -6 -6 -6 -5 -5 -4 -4 -4 -3 -3 ------- Run | Scr Mat Mat Mat Fac Fac Low Low Fac Ext Fac Upp Upp Res Tes Combat Hostiles Destroyed 1 | . . . . . . . . 1 . . . . . . Melee 1 | . . . . . . . . 1 . . . . . . Classes Destroyed 1 | . . . . . . . . 1 . . . . . . Programmer 1 | . . . . . . . . 1 . . . . . . Best Kill Streak 1 | . . . . . . . . 1 . . . . . . Combat Bots Only 1 | . . . . . . . . 1 . . . . . . Max Kills in Single Turn 1 | . . . . . . . . 1 . . . . . . Gunslinging . | . . . . . . . . . . . . . . . Exploded . | . . . . . . . . . . . . . . . Melee 1 | . . . . . . . . 1 . . . . . . Uniques/NPCs Destroyed . | . . . . . . . . . . . . . . . Combat | -11 -10 -9 -8 -7 -6 -6 -6 -5 -5 -4 -4 -4 -3 -3 -------- Run | Scr Mat Mat Mat Fac Fac Low Low Fac Ext Fac Upp Upp Res Tes Damage Taken 2983 | . 122 466 466 106 100 . . 71 183 73 . . 62 1334 Core 2215 | . 19 147 295 106 100 . . 37 183 19 . . 62 1247 Absorbed by Shields . | . . . . . . . . . . . . . . . Core Remaining (%) 81 | 100 92 63 46 84 . . 88 . 78 . . 98 . . Volleys Fired . | . . . . . . . . . . . . . . . Largest . | . . . . . . . . . . . . . . . Hottest . | . . . . . . . . . . . . . . . Shots Fired . | . . . . . . . . . . . . . . . Gun . | . . . . . . . . . . . . . . . Cannon . | . . . . . . . . . . . . . . . Launcher . | . . . . . . . . . . . . . . . Special . | . . . . . . . . . . . . . . . Kinetic . | . . . . . . . . . . . . . . . Thermal . | . . . . . . . . . . . . . . . Explosive . | . . . . . . . . . . . . . . . Electromagnetic . | . . . . . . . . . . . . . . . Robot Hit Streak . | . . . . . . . . . . . . . . . Robot Miss Streak . | . . . . . . . . . . . . . . . Penetration Max . | . . . . . . . . . . . . . . . Secondary Targets . | . . . . . . . . . . . . . . . Shots Hit Robots 2 | . . . . . . . . 2 . . . . . . Core Hits 9 | . . 2 . . 1 . . 2 . 1 . . . 3 Critical Hits . | . . . . . . . . . . . . . . . Critical Kills . | . . . . . . . . . . . . . . . Critical Parts Destroyed . | . . . . . . . . . . . . . . . Melee Attacks 9 | . . . . 2 . . . 7 . . . . . . Impact . | . . . . . . . . . . . . . . . Slashing 7 | . . . . 2 . . . 5 . . . . . . Piercing 2 | . . . . . . . . 2 . . . . . . Sneak Attacks . | . . . . . . . . . . . . . . . Combat Hostiles . | . . . . . . . . . . . . . . . Follow-up Attacks . | . . . . . . . . . . . . . . . Damage Inflicted 118 | . . 7 . . 7 . . 73 . 2 . . . 29 Guns . | . . . . . . . . . . . . . . . Cannons . | . . . . . . . . . . . . . . . Explosions . | . . . . . . . . . . . . . . . Melee 65 | . . . . . . . . 65 . . . . . . Ramming 53 | . . 7 . . 7 . . 8 . 2 . . . 29 Kinetic . | . . . . . . . . . . . . . . . Thermal . | . . . . . . . . . . . . . . . Explosive . | . . . . . . . . . . . . . . . Electromagnetic . | . . . . . . . . . . . . . . . Impact . | . . . . . . . . . . . . . . . Slashing . | . . . . . . . . . . . . . . . Piercing 65 | . . . . . . . . 65 . . . . . . Highest Corruption 11 | . . . . 1 . . . . . . . . . 11 Average Corruption 3 | . . . . 1 . . . . . . . . . 4 Corruption Purged . | . . . . . . . . . . . . . . . Effects 4 | . . . . . . . . . . . . . . 4 Matter Fused 1 | . . . . . . . . . . . . . . 1 Data Loss (major) 1 | . . . . . . . . . . . . . . 1 Misdirections 2 | . . . . . . . . . . . . . . 2 Overload Shots . | . . . . . . . . . . . . . . . Overflow Damage . | . . . . . . . . . . . . . . . Projectiles . | . . . . . . . . . . . . . . . Explosions . | . . . . . . . . . . . . . . . Melee . | . . . . . . . . . . . . . . . Knockbacks . | . . . . . . . . . . . . . . . Impact . | . . . . . . . . . . . . . . . Kinetic . | . . . . . . . . . . . . . . . Secondary . | . . . . . . . . . . . . . . . Self-Inflicted Damage 24 | . . 3 . . 3 . . 3 . 1 . . . 14 Shots . | . . . . . . . . . . . . . . . Rammed 18 | . 1 2 . . 1 . . 4 . 1 . . . 9 Targets Rammed 18 | . 1 2 . . 1 . . 4 . 1 . . . 9 Kicked . | . . . . . . . . . . . . . . . Crushed . | . . . . . . . . . . . . . . . Highest Temperature . | . . . . . . . . . . . . . . . Average Temperature . | . . . . . . . . . . . . . . . Received Heat Transfer 573 | . . 135 216 48 45 . . . 36 18 . . 9 66 Siege Activations . | . . . . . . . . . . . . . . . Robots Corrupted . | . . . . . . . . . . . . . . . Combat Hostiles . | . . . . . . . . . . . . . . . Parts Fried . | . . . . . . . . . . . . . . . Impact Corruptions . | . . . . . . . . . . . . . . . Robots Melted . | . . . . . . . . . . . . . . . Combat Hostiles . | . . . . . . . . . . . . . . . Parts Melted . | . . . . . . . . . . . . . . . Heat Transferred . | . . . . . . . . . . . . . . . Parts Sabotaged . | . . . . . . . . . . . . . . . Parts Stolen . | . . . . . . . . . . . . . . . Parts Stripped . | . . . . . . . . . . . . . . . Power Chain Reactions . | . . . . . . . . . . . . . . . Missiles Intercepted . | . . . . . . . . . . . . . . . Alert | -11 -10 -9 -8 -7 -6 -6 -6 -5 -5 -4 -4 -4 -3 -3 ------- Run | Scr Mat Mat Mat Fac Fac Low Low Fac Ext Fac Upp Upp Res Tes Peak Influence 190 | . . 45 16 190 94 . . 134 92 53 . . 23 159 Initial 79 | . . . 16 5 79 . . 19 56 38 . . 8 11 Average 60 | . . 13 13 104 79 . . 77 59 40 . . 17 89 Maximum Alert Level . | . . . . . . . . . . . . . . . Low Security (%) 100 | . 100 100 100 100 100 . . 100 100 100 . . 100 100 Level 1 . | . . . . . . . . . . . . . . . Level 2 . | . . . . . . . . . . . . . . . Level 3 . | . . . . . . . . . . . . . . . Level 4 . | . . . . . . . . . . . . . . . Level 5 . | . . . . . . . . . . . . . . . High Security . | . . . . . . . . . . . . . . . Max Security . | . . . . . . . . . . . . . . . Squads Dispatched 13 | . . . 1 3 1 . . 2 . . . . . 6 Investigation 8 | . . . . 2 1 . . 2 . . . . . 3 Extermination . | . . . . . . . . . . . . . . . Reinforcement 5 | . . . 1 1 . . . . . . . . . 3 Assault . | . . . . . . . . . . . . . . . Garrison . | . . . . . . . . . . . . . . . Intercept . | . . . . . . . . . . . . . . . Construction Impeded . | . . . . . . . . . . . . . . . Haulers Reinforced . | . . . . . . . . . . . . . . . Stealth | -11 -10 -9 -8 -7 -6 -6 -6 -5 -5 -4 -4 -4 -3 -3 --------- Run | Scr Mat Mat Mat Fac Fac Low Low Fac Ext Fac Upp Upp Res Tes Distress Signals 1 | . . 1 . . . . . . . . . . . . Communications Jammed . | . . . . . . . . . . . . . . . Distress Signals . | . . . . . . . . . . . . . . . Times Spotted 66 | . 5 8 9 8 5 . . 4 4 2 . . 1 20 Peak Tracking Total 18 | . 5 9 8 4 5 . . 2 4 3 . . 1 18 Tactical Retreats 4 | . . 2 . 2 . . . . . . . . . . Traps | -11 -10 -9 -8 -7 -6 -6 -6 -5 -5 -4 -4 -4 -3 -3 ------- Run | Scr Mat Mat Mat Fac Fac Low Low Fac Ext Fac Upp Upp Res Tes Traps Triggered 5 | . . . . 1 1 . . 1 . . . . . 2 Indirectly . | . . . . . . . . . . . . . . . Trap Hack Attempts . | . . . . . . . . . . . . . . . Triggered . | . . . . . . . . . . . . . . . Disarmed . | . . . . . . . . . . . . . . . Reprogrammed . | . . . . . . . . . . . . . . . Reused . | . . . . . . . . . . . . . . . Traps Extracted . | . . . . . . . . . . . . . . . Installed . | . . . . . . . . . . . . . . . Triggered 2 | . . . . . . . . . . . 2 . . . Machines | -11 -10 -9 -8 -7 -6 -6 -6 -5 -5 -4 -4 -4 -3 -3 ---------- Run | Scr Mat Mat Mat Fac Fac Low Low Fac Ext Fac Upp Upp Res Tes Machines Disabled . | . . . . . . . . . . . . . . . Max in Single Turn . | . . . . . . . . . . . . . . . Garrison Access 1 | . . . . . . . . 1 . . . . . . Machines Sabotaged . | . . . . . . . . . . . . . . . Garrisons Compromised . | . . . . . . . . . . . . . . . Overloaded Fab Kills 2 | . . . . 2 . . . . . . . . . . Fab Network Shutdowns . | . . . . . . . . . . . . . . . Hacking | -11 -10 -9 -8 -7 -6 -6 -6 -5 -5 -4 -4 -4 -3 -3 --------- Run | Scr Mat Mat Mat Fac Fac Low Low Fac Ext Fac Upp Upp Res Tes Machines Accessed 14 | . . . 1 3 . . . 5 1 . . . . 4 Terminals 8 | . . . 1 2 . . . 1 1 . . . . 3 Fabricators 4 | . . . . 1 . . . 2 . . . . . 1 Repair Stations . | . . . . . . . . . . . . . . . Recycling Units 1 | . . . . . . . . 1 . . . . . . Scanalyzers . | . . . . . . . . . . . . . . . Garrison Access 1 | . . . . . . . . 1 . . . . . . Total Hacks 35 | . . . 3 7 . . . 13 1 . . . . 11 Successful 20 | . . . 2 5 . . . 5 1 . . . . 7 Failed 15 | . . . 1 2 . . . 8 . . . . . 4 Catastrophic 3 | . . . . 1 . . . 1 . . . . . 1 Database Lockouts . | . . . . . . . . . . . . . . . Manual 24 | . . . 3 6 . . . 10 . . . . . 5 Terminals 20 | . . . 3 5 . . . 2 1 . . . . 9 Fabricators 8 | . . . . 2 . . . 4 . . . . . 2 Repair Stations . | . . . . . . . . . . . . . . . Recycling Units 5 | . . . . . . . . 5 . . . . . . Scanalyzers . | . . . . . . . . . . . . . . . Garrison Access 2 | . . . . . . . . 2 . . . . . . Terminal Hacks 5 | . . . . 1 . . . . 1 . . . . 3 Record 3 | . . . . . . . . . . . . . . 3 Open Door 1 | . . . . . . . . . 1 . . . . . Level Access Points 1 | . . . . 1 . . . . . . . . . . Fabricator Hacks 1 | . . . . . . . . 1 . . . . . . Build 1 | . . . . . . . . 1 . . . . . . Repair Station Hacks . | . . . . . . . . . . . . . . . Recycling Unit Hacks . | . . . . . . . . . . . . . . . Scanalyzer . | . . . . . . . . . . . . . . . Garrison Access Hacks 1 | . . . . . . . . 1 . . . . . . Seal Access 1 | . . . . . . . . 1 . . . . . . Unauthorized Hacks 13 | . . . 2 4 . . . 3 . . . . . 4 Terminals 6 | . . . 2 2 . . . . . . . . . 2 Assimilate 3 | . . . 1 . . . . . . . . . . 2 Botnet 2 | . . . . 2 . . . . . . . . . . Disrupt 1 | . . . 1 . . . . . . . . . . . Fabricators 6 | . . . . 2 . . . 2 . . . . . 2 Siphon 4 | . . . . 1 . . . 2 . . . . . 1 Overload 2 | . . . . 1 . . . . . . . . . 1 Repair Stations . | . . . . . . . . . . . . . . . Recycling Units 1 | . . . . . . . . 1 . . . . . . Recyclers 1 | . . . . . . . . 1 . . . . . . Scanalyzers . | . . . . . . . . . . . . . . . Garrison Access . | . . . . . . . . . . . . . . . Data Cores Recovered . | . . . . . . . . . . . . . . . Used . | . . . . . . . . . . . . . . . Hacking Detections 12 | . . . 1 2 . . . 5 . . . . . 4 Full Trace Events 6 | . . . 1 1 . . . 2 . . . . . 2 Feedback Events 1 | . . . . 1 . . . . . . . . . . Corruption 1 | . . . . 1 . . . . . . . . . . Feedback Blocked . | . . . . . . . . . . . . . . . Robot Schematics Acquired . | . . . . . . . . . . . . . . . Robots Built 1 | . . . . . . . . 1 . . . . . . Matter 153 | . . . . . . . . 153 . . . . . . Time 27 | . . . . . . . . 27 . . . . . . Total Robot Build Rating 1 | . . . . . . . . 1 . . . . . . Part Schematics Acquired . | . . . . . . . . . . . . . . . Parts Built . | . . . . . . . . . . . . . . . Matter . | . . . . . . . . . . . . . . . Time . | . . . . . . . . . . . . . . . Total Part Build Rating . | . . . . . . . . . . . . . . . Parts Repaired . | . . . . . . . . . . . . . . . Time . | . . . . . . . . . . . . . . . Parts Recycled . | . . . . . . . . . . . . . . . Recycled Matter . | . . . . . . . . . . . . . . . Retrieved Matter . | . . . . . . . . . . . . . . . Retrieved Components . | . . . . . . . . . . . . . . . Parts Scanalyzed . | . . . . . . . . . . . . . . . Part Schematics Acquired . | . . . . . . . . . . . . . . . Parts Damaged . | . . . . . . . . . . . . . . . Bothacking | -11 -10 -9 -8 -7 -6 -6 -6 -5 -5 -4 -4 -4 -3 -3 ------------ Run | Scr Mat Mat Mat Fac Fac Low Low Fac Ext Fac Upp Upp Res Tes Used RIF Installer . | . . . . . . . . . . . . . . . Robots Hacked . | . . . . . . . . . . . . . . . Non-combat . | . . . . . . . . . . . . . . . Combat . | . . . . . . . . . . . . . . . Robot Hacks Applied . | . . . . . . . . . . . . . . . Relay Couplers Released . | . . . . . . . . . . . . . . . Robots Rewired . | . . . . . . . . . . . . . . . Allies Hacked . | . . . . . . . . . . . . . . . Hacks Repelled . | . . . . . . . . . . . . . . . Allies | -11 -10 -9 -8 -7 -6 -6 -6 -5 -5 -4 -4 -4 -3 -3 -------- Run | Scr Mat Mat Mat Fac Fac Low Low Fac Ext Fac Upp Upp Res Tes Total Allies 1 | . . . . . . . . 1 . . . . . . Largest Group 1 | . . . . . . . . 1 . . . . . . Highest-Rated Group 9 | . . . . . . . . 9 . . . . . . Highest-Rated Ally 9 | . . . . . . . . 9 . . . . . . Total Orders . | . . . . . . . . . . . . . . . Ally Attacks . | . . . . . . . . . . . . . . . Total Damage . | . . . . . . . . . . . . . . . Kills . | . . . . . . . . . . . . . . . Allies Corrupted . | . . . . . . . . . . . . . . . Allies Melted . | . . . . . . . . . . . . . . . Intel | -11 -10 -9 -8 -7 -6 -6 -6 -5 -5 -4 -4 -4 -3 -3 ------- Run | Scr Mat Mat Mat Fac Fac Low Low Fac Ext Fac Upp Upp Res Tes Robot Analysis Total . | . . . . . . . . . . . . . . . Derelict Logs Recovered 2 | . . . . . . . . . . . 2 . . . Drone Launches . | . . . . . . . . . . . . . . . Drone Recoveries . | . . . . . . . . . . . . . . . Exploration | -11 -10 -9 -8 -7 -6 -6 -6 -5 -5 -4 -4 -4 -3 -3 ------------- Run | Scr Mat Mat Mat Fac Fac Low Low Fac Ext Fac Upp Upp Res Tes Turns Passed 1342 | . 65 120 101 134 43 117 5 239 45 12 227 5 44 185 Spaces Moved 2029 | 1 54 99 108 236 78 234 10 392 96 25 403 10 50 233 Core 1741 | . . . 61 236 78 234 10 372 54 . 403 10 50 233 Treads . | . . . . . . . . . . . . . . . Legs 186 | 1 54 99 32 . . . . . . . . . . . Wheels . | . . . . . . . . . . . . . . . Hover 15 | . . . 15 . . . . . . . . . . . Flight 87 | . . . . . . . . 20 42 25 . . . . Fastest Speed 40 | 120 120 120 48 50 50 50 50 40 40 40 50 50 50 50 Average Speed 57 | 120 120 120 79 51 50 50 50 50 45 40 55 50 50 50 Slowest Speed 150 | 120 120 120 120 100 50 50 50 150 50 40 100 50 50 50 Overloaded Moves . | . . . . . . . . . . . . . . . Propulsion Burnouts . | . . . . . . . . . . . . . . . Robots Hopped 2 | . . . . . . . . . 1 1 . . . . Cave-ins Triggered . | . . . . . . . . . . . . . . . Exploration Rate (%) 18 | 1 18 19 20 10 4 46 4 16 25 1 71 5 2 29 Regions Visited 14 Branch Regions 6 Pre-discovered Areas 1 | . . . . . . . . . . . 1 . . . Known Exits Taken 1 | . . . . 1 . . . . . . . . . . Unknown Exits Taken 13 | 1 1 1 1 . 1 1 1 1 1 1 1 1 1 . Scrap Searched . | . . . . . . . . . . . . . . . Spaces Dug 7 | . . . . 2 . . . 5 . . . . . . Terrain Destroyed 7 | . . . . 2 . . . 5 . . . . . . Melee 7 | . . . . 2 . . . 5 . . . . . . Projectile . | . . . . . . . . . . . . . . . AOE . | . . . . . . . . . . . . . . . Terrain Rammed . | . . . . . . . . . . . . . . . Walls Destroyed . | . . . . . . . . . . . . . . . Machines Disabled . | . . . . . . . . . . . . . . . Actions | -11 -10 -9 -8 -7 -6 -6 -6 -5 -5 -4 -4 -4 -3 -3 --------- Run | Scr Mat Mat Mat Fac Fac Low Low Fac Ext Fac Upp Upp Res Tes Total 2173 | . 54 100 121 247 82 233 9 423 95 25 406 9 68 301 Wait 36 | . . . 8 . . . . 4 . . 2 . 19 3 Move 2013 | . 53 98 107 235 78 233 9 391 93 23 402 9 49 233 Hop 2 | . . . . . . . . . 1 1 . . . . Pick Up 5 | . . . . . . . . 4 . . 1 . . . Fast Attach 8 | . . . 4 1 1 . . 1 . . . . . 1 Attach 8 | . . . . 1 . . . 5 1 1 . . . . Detach 9 | . . . . 1 2 . . 5 . . 1 . . . Swap . | . . . . . . . . . . . . . . . Drop 8 | . . . 2 3 1 . . 2 . . . . . . Fire . | . . . . . . . . . . . . . . . Melee 9 | . . . . 2 . . . 7 . . . . . . Ram 13 | . . . . . . . . 4 . . . . . 9 Kick 3 | . 1 2 . . . . . . . . . . . . Crush . | . . . . . . . . . . . . . . . Escape Stasis 55 | . . . . . . . . . . . . . . 55 Rewire 4 | . . . . 4 . . . . . . . . . . Trap . | . . . . . . . . . . . . . . . Miscellaneous . | . . . . . . . . . . . . . . . Route ------- -11/Scrapyard -10/Materials -9/Materials -8/Materials -7/Factory (discovered 4 exits: *Fac x4) -6/Factory -6/Lower Caves -6/Lower Caves -5/Factory -5/Extension -4/Factory -4/Upper Caves -4/Upper Caves -3/Research -3/Testing History --------- Turn | Location | Event 1 | -11/Scrapyard | Discovered new exit (range 0) 1 | -11/Scrapyard | Entered Materials 48 | -10/Materials | Discovered new exit (range 16) 66 | -10/Materials | Entered another Materials area 66 | -9/Materials | Evolved 2 slots: Propulsion x2 176 | -9/Materials | Discovered new exit (range 10) 186 | -9/Materials | Lost 3 parts (1p1n1w) 186 | -9/Materials | Entered another Materials area 186 | -8/Materials | Evolved 2 slots: Propulsion x1, Utility x1 276 | -8/Materials | Core integrity fell below 50% 285 | -8/Materials | Discovered new exit (range 3) 287 | -8/Materials | Entered Factory 287 | -7/Factory | Evolved 2 slots: Power x1, Propulsion x1 300 | -7/Factory | Lost 3 parts (3n) 308 | -7/Factory | Build established: Mutant 356 | -7/Factory | Identified exit to Factory 421 | -7/Factory | Entered another Factory area 421 | -6/Factory | Evolved 2 slots: Propulsion x2 462 | -6/Factory | Discovered new exit (range 4) 464 | -6/Factory | Entered Lower Caves 579 | -6/Lower Caves | Discovered new exit (range 5) 581 | -6/Lower Caves | Entered another Lower Caves area 582 | -6/Lower Caves | Discovered new exit (range 9) 586 | -6/Lower Caves | Entered Factory 586 | -5/Factory | Evolved 2 slots: Propulsion x2 736 | -5/Factory | Fabricated T-07 Excavator? 767 | -5/Factory | Spotted B-75 Beast 818 | -5/Factory | Discovered new exit (range 16) 825 | -5/Factory | Entered Extension 863 | -5/Extension | Spotted B-75 Beast 864 | -5/Extension | Spotted B-75 Beast 869 | -5/Extension | Discovered new exit (range 3) 870 | -5/Extension | Entered Factory 870 | -4/Factory | Evolved 2 slots: Propulsion x1, Utility x1 878 | -4/Factory | Discovered new exit (range 7) 882 | -4/Factory | Entered Upper Caves 1050 | -4/Upper Caves | Learned location of Quarantine (-2) 1053 | -4/Upper Caves | Learned Research stockpile data 1082 | -4/Upper Caves | Encountered a Warlord checkpoint 1091 | -4/Upper Caves | Discovered new exit (range 12) 1109 | -4/Upper Caves | Entered another Upper Caves area 1111 | -4/Upper Caves | Discovered new exit (range 8) 1114 | -4/Upper Caves | Entered Research 1114 | -3/Research | Evolved 2 slots: Propulsion x2 1131 | -3/Research | Discovered new exit (range 16) 1158 | -3/Research | Entered Testing 1270 | -3/Testing | Scanned by Researcher 1293 | -3/Testing | Core integrity fell below 50% 1295 | -3/Testing | Spotted Striker 1300 | -3/Testing | Spotted Striker 1314 | -3/Testing | System corruption reached 10% 1321 | -3/Testing | Core integrity fell below 20% 1343 | -3/Testing | Destroyed by G-67 Veteran with Plasma Rifle Last Messages --------------- 01316_ Slammed into H-77 Assassin. 01317_ Slug penetrates Terminal. 01317_ Penetrated by Slug. 01318_ Held in stasis. 01318_ C-55 Analyst is analyzing... 01320_ Penetrated by Slug. 01320_ Slug penetrates Wall. 01323_ Penetrated by Slug. 01323_ Slug penetrates Wall. 01323_ Penetrated by Slug. 01323_ Slug penetrates Wall. 01329_ System corrupted: Matter fused (-8). 01330_ Slammed into K-01 Serf. 01331_ C-55 Analyst calls for reinforcements. 01331_ ALERT: Hostile activity reported, dispatching reinforcements to area. 01331_ Held in stasis. 01331_ C-55 Analyst is analyzing... 01336_ K-01 Serf collects debris. 01338_ K-01 Serf cleans the Catalytron. Map ----- +----------------------------------------------------+ | """F"" ?????????????????????????????????? | | """ "" ######?????????????????????????????????? | | #??????????????????????????????????????? | | ]= """ ########???????????????????????????????? | | ]= """ #???????????????????????????????? | | ] """ #???????????????????????????????? | | #???????????????????????????????? | | #???????????????????????????????? | | ###+###### #???????????????????????????????? | | # ## #???????????????????????????????? | | # ## #???????????????????????????????? | | # """ ## #???????????????????????????????? | | # """ + #???????????????????????????????? | | # """ ## #???????????????????????????????? | | # """ ## #???????????????????????????????? | | # """ ## #???????????????????????????????? | | # """ ! ## #???????????????????????????????? | | # """ ## #???????????????????????????????? | | ???? ## #???????????????????????????????? | | ???? ## #############+#+????????????????? | | ????######### ?????????????????? | | ????????????# k ????????????????? | | ############# """ """ """ """ #??????????????? | | # # """ """ """ """ #??????????????? | | # """ "?" # """ """ """ """ #??????????????? | | # """" "?" + @ #??????????????? | | # """ """ # k ! #??????????????? | | # # k #??????????????? | | # # u g g #??????????????? | | # # p############# g g ???????????? | | ######+###### #????????????? # ??????????? | | ?????# ###### #?????????????? #?? ??????????? | | ?????# + ""???????????? #??????????????? | | ?????+ # """"???????????#??????????????? | | ?????# "" # """"??????????????????????????? | | ?????# " #?####??????????????????????????? | | ?????#### "T ##??#######??????????????????????? | | ????????# "" #??# ????????????????????? | | ????????# "" #??? ! ! #???????????????????? | | ????????# ###? #???????????????????? | | ????????# # + #???????????????????? | | ????????# #### ## ## """ """ #???????????????????? | | ????????# ####/## ## """ """ #???????????????????? | | ????????# # | # #??""" """ #???????????????????? | | ????????# # # #???? ?????????????????????? | | ???#????# # ] # #######+#??????????????????????? | | " #????# #! / #########??????????????? | | " #????# # # # #??????????????? | | " =#????# # # ##### # #??????????????? | | " #????# # # #???# # *#??????????????? | +----------------------------------------------------+ Best States ------------- Heat Dissipation 46 Energy Generation 18 Energy Capacity 250 Matter Stores 300 Matter Capacity 300 Sight Range 16 Terrain Scan Density 10 Resistance: KI 20 Resistance: TH 20 Resistance: EX 20 Resistance: EM 20 Resistance: I 20 Resistance: S 20 Resistance: P 20 Evasion (%) 62 Target Analysis 8 Offensive Hacking 10 Item Schematics ----------------- None Robot Schematics ------------------ None Fabricated ------------ T-07 Excavator | x1 | -5/Factory | Preloaded Alien Tech Used ----------------- None Achievements -------------- None Challenges ------------ None Game ------ Seed ReinforcedFortressBattery Manual? 0 Play Time 00:23:23 Cumulative 48.0 hours Start 2021.05.06 @ 21:25:12 End 2021.05.06 @ 21:45:47 Sessions 1 Manual Loads 0 Difficulty Adventurer Special Mode None Game No. 24 Rogue 1 Adventurer 23 Explorer 0 Win Type - Total 1 Types 1/0/0/0/0/0/0/0/0 Lore% 48 Gallery% 56 Achievement% 42 Wizard Run 0 Options --------- ASCII 0 Keyboard 0 Movement Vi Keybinds 0 Fullscreen 1 Font 14/Dina Map View 72x54 Tactical HUD 1 Map Filters NONE Filters NONE Steam 1 RUN: 019124a1-b643-4a96-826c-8346b929ce27